Workbook

Sheet Programación de pagos
B2: PATRIMONIO AUTÓNOMO FIA
B3: PROGRAMACIÓN DE PAGOS
A5: PROGRAMACIÓN DE PAGOS
A6: PAP-PDA | B6: SANTANDER | F6: OBJETO DEL CONTRATO
A7: Fecha | B7: 2019-05-08
A8: No. de Contrato
A9: DATOS DEL CONTRATISTA
A10: Identificación
A11: Nombre Completo | F11: FORMATO DE PAGO
A12: Valor contrato inicial | F12: CONTRATO INICIAL | J12: ADICIÓN AL CONTRATO
A13: Valor adición 1
A14: Valor adición 2
A15: Valor adición 3
A16: VALOR TOTAL DEL CONTRATO | B16: =SUM(B12:E15) -> 0
F17: PORCENTAJE DEL ANTICIPO
A19: DETALLE CONTRATO INICIAL
A20: Departamento o municipio | B20: Cod DANE | D20: No CDR´s | F20: Fecha Expedición CDR | G20: Valor CDR´s por fuente | H20: Fuente | I20: Codigo Fuente | J20: Valor contrato por fuente | K20: MES - AÑO | L20: 2018-12-01 | P20: 2019-01-01 | T20: 2019-02-01 | X20: 2019-03-01 | AB20: 2019-04-01 | AF20: 2019-05-01 | AJ20: Total pagos realizados | AK20: Total amortización anticipos | AL20: Saldo amortización anticipos
K21: ANTICIPO | L21: ACTA No 1 | M21: Amortización Anticipo | N21: Otros descuentos | O21: NETO | P21: ACTA No 2 | Q21: Amortización Anticipo | R21: Otros descuentos | S21: NETO | T21: ACTA No 3 | U21: Amortización Anticipo | V21: Otros descuentos | W21: NETO | X21: ACTA No 4 | Y21: Amortización Anticipo | Z21: Otros descuentos | AA21: NETO | AB21: ACTA No 5 | AC21: Amortización Anticipo | AD21: Otros descuentos | AE21: NETO | AF21: ACTA No 6 | AG21: Amortización Anticipo | AH21: Otros descuentos | AI21: NETO
B22: =IFERROR(VLOOKUP(A22,CODI_DANE!$B$2:$C$1155,2,0),0) -> 0 | H22: SGP | I22: =IFERROR(VLOOKUP(H22,CODI_DANE!$A$1161:$B$1172,2,0),0) -> 103 | J22: 500000000 | K22: 150000000 | L22: 125000000 | M22: 75000000 | O22: =L22-M22-N22 -> 50000000 | P22: 80000000 | Q22: 75000000 | S22: =P22-Q22-R22 -> 5000000 | U22: 0 | W22: =T22-U22-V22 -> 0 | AA22: =X22-Y22-Z22 -> 0 | AE22: =AB22-AC22-AD22 -> 0 | AI22: =AF22-AG22-AH22 -> 0 | AJ22: =K22+O22+S22+AI22+N22+R22+AH22 -> 205000000 | AK22: =M22+Q22+AG22 -> 150000000 | AL22: =K22-AK22 -> 0
B23: =IFERROR(VLOOKUP(A23,CODI_DANE!$B$2:$C$1155,2,0),0) -> 0 | H23: RECURSOS DE LA NACION /AUDIENCIAS PUBLICAS | I23: =IFERROR(VLOOKUP(H23,CODI_DANE!$A$1161:$B$1172,2,0),0) -> 105 | J23: 250000000 | K23: 100000000 | L23: 50000000 | M23: 25000000 | O23: =L23-M23-N23 -> 25000000 | P23: 100000000 | Q23: 25000000 | S23: =P23-Q23-R23 -> 75000000 | W23: =T23-U23-V23 -> 0 | AA23: =X23-Y23-Z23 -> 0 | AE23: =AB23-AC23-AD23 -> 0 | AI23: =AF23-AG23-AH23 -> 0 | AJ23: =K23+O23+S23+AI23+N23+R23+AH23 -> 200000000 | AK23: =M23+Q23+AG23 -> 50000000 | AL23: =K23-AK23 -> 50000000
B24: =IFERROR(VLOOKUP(A24,CODI_DANE!$B$2:$C$1155,2,0),0) -> 0 | H24: REGALIAS -FONDO COMPENSACION REGIONAL | I24: =IFERROR(VLOOKUP(H24,CODI_DANE!$A$1161:$B$1172,2,0),0) -> 118 | O24: =L24-M24-N24 -> 0 | S24: =P24-Q24-R24 -> 0 | W24: =T24-U24-V24 -> 0 | AA24: =X24-Y24-Z24 -> 0 | AE24: =AB24-AC24-AD24 -> 0 | AI24: =AF24-AG24-AH24 -> 0 | AJ24: =K24+O24+S24+AI24+N24+R24+AH24 -> 0 | AK24: =M24+Q24+AG24 -> 0 | AL24: =K24-AK24 -> 0
G25: TOTAL CONTRATO INICIAL | J25: =SUM(J22:J24) -> 750000000 | K25: =SUM(K22:K24) -> 250000000 | L25: =SUM(L22:L24) -> 175000000 | M25: =SUM(M22:M24) -> 100000000 | N25: =SUM(N22:N24) -> 0 | O25: 75000000 | P25: =SUM(P22:P24) -> 180000000 | Q25: =SUM(Q22:Q24) -> 100000000 | R25: =SUM(R22:R24) -> 0 | S25: 80000000 | T25: =SUM(T22:T24) -> 0 | U25: =SUM(U22:U24) -> 0 | V25: =SUM(V22:V24) -> 0 | W25: 0 | X25: =SUM(X22:X24) -> 0 | Y25: =SUM(Y22:Y24) -> 0 | Z25: =SUM(Z22:Z24) -> 0 | AA25: 0 | AB25: =SUM(AB22:AB24) -> 0 | AC25: =SUM(AC22:AC24) -> 0 | AD25: =SUM(AD22:AD24) -> 0 | AE25: 0 | AF25: =SUM(AF22:AF24) -> 0 | AG25: =SUM(AG22:AG24) -> 0 | AH25: =SUM(AH22:AH24) -> 0 | AI25: 0 | AJ25: =SUM(AJ22:AJ24) -> 405000000 | AK25: =SUM(AK22:AK24) -> 200000000 | AL25: =SUM(AL22:AL24) -> 50000000
H26: SALDO CONTRATO | K26: =J25-K25 -> 500000000 | L26: =K26-O25-N25 -> 425000000 | M26: =L25-M25 -> 75000000 | N26: 100000000 | O26: -75000000 | P26: =L26-S25-R25 -> 345000000 | Q26: =P25-Q25 -> 80000000 | R26: =Q25-R25 -> 100000000 | S26: =R25-S25 -> -80000000 | T26: =P26-W25-V25 -> 345000000 | U26: =T25-U25 -> 0 | V26: =U25-V25 -> 0 | W26: =V25-W25 -> 0 | X26: =T26-AA25-Z25 -> 345000000 | Y26: =X25-Y25 -> 0 | Z26: =Y25-Z25 -> 0 | AA26: =Z25-AA25 -> 0 | AB26: =X26-AE25-AD25 -> 345000000 | AC26: =AB25-AC25 -> 0 | AD26: =AC25-AD25 -> 0 | AE26: =AD25-AE25 -> 0 | AF26: =AB26-AI25-AH25 -> 345000000 | AG26: =AF25-AG25 -> 0 | AH26: =AG25-AH25 -> 0 | AI26: =AH25-AI25 -> 0
A29: DETALLE ADICIONES AL CONTRATO
A30: Departamento o municipio | B30: Cod DANE | D30: No CDR´s | F30: Fecha Expedición CDR | G30: Valor CDR´s por fuente | H30: Fuente | I30: Codigo Fuente | J30: Valor contrato por fuente | K30: MES - AÑO | L30: 2018-12-01 | P30: 2019-01-01 | T30: 2019-02-01 | X30: 2019-03-01 | AB30: 2019-04-01 | AF30: 2019-05-01 | AJ30: Total pagos realizados | AK30: Total amortización anticipos | AL30: Saldo amortización anticipos
K31: ANTICIPO | L31: ACTA No 1 | M31: Amortización Anticipo | N31: Otros descuentos | O31: NETO | P31: ACTA No 2 | Q31: Amortización Anticipo | R31: Otros descuentos | S31: NETO | T31: ACTA No 3 | U31: Amortización Anticipo | V31: Otros descuentos | W31: NETO | X31: ACTA No 4 | Y31: Amortización Anticipo | Z31: Otros descuentos | AA31: NETO | AB31: ACTA No 5 | AC31: Amortización Anticipo | AD31: Otros descuentos | AE31: NETO | AF31: ACTA No 6 | AG31: Amortización Anticipo | AH31: Otros descuentos | AI31: NETO
B32: =IFERROR(VLOOKUP(A32,CODI_DANE!$B$2:$C$1155,2,0),0) -> 0 | H32: RECURSOS CRÉDITO | I32: =IFERROR(VLOOKUP(H32,CODI_DANE!$A$1161:$B$1172,2,0),0) -> 500 | O32: =L32-M32-N32 -> 0 | S32: =P32-Q32-R32 -> 0 | W32: =T32-U32-V32 -> 0 | AA32: =X32-Y32-Z32 -> 0 | AE32: =AB32-AC32-AD32 -> 0 | AI32: =AF32-AG32-AH32 -> 0 | AJ32: =K32+O32+S32+AI32+N32+R32+AH32 -> 0 | AK32: =M32+Q32+AG32 -> 0 | AL32: =K32-AK32 -> 0
B33: =IFERROR(VLOOKUP(A33,CODI_DANE!$B$2:$C$1155,2,0),0) -> 0 | H33: RECURSOS BID NACION | I33: =IFERROR(VLOOKUP(H33,CODI_DANE!$A$1161:$B$1172,2,0),0) -> 405 | O33: =L33-M33-N33 -> 0 | S33: =P33-Q33-R33 -> 0 | W33: =T33-U33-V33 -> 0 | AA33: =X33-Y33-Z33 -> 0 | AE33: =AB33-AC33-AD33 -> 0 | AI33: =AF33-AG33-AH33 -> 0 | AJ33: =K33+O33+S33+AI33+N33+R33+AH33 -> 0 | AK33: =M33+Q33+AG33 -> 0 | AL33: =K33-AK33 -> 0
B34: =IFERROR(VLOOKUP(A34,CODI_DANE!$B$2:$C$1155,2,0),0) -> 0 | H34: RECURSOS NACION ESTRATEGICOS | I34: =IFERROR(VLOOKUP(H34,CODI_DANE!$A$1161:$B$1172,2,0),0) -> 119 | O34: 0 | S34: 0 | W34: 0 | AA34: 0 | AE34: 0 | AI34: 0 | AJ34: =K34+O34+S34+AI34+N34+R34+AH34 -> 0 | AK34: 0 | AL34: =K34-AK34 -> 0
G35: TOTAL CONTRATO ADICIONAL | J35: =SUM(J32:J34) -> 0 | K35: =SUM(K32:K34) -> 0 | L35: =SUM(L32:L34) -> 0 | M35: 0 | N35: 0 | O35: 0 | P35: =SUM(P32:P34) -> 0 | Q35: 0 | R35: 0 | S35: 0 | T35: =SUM(T32:T34) -> 0 | U35: 0 | V35: 0 | W35: 0 | X35: =SUM(X32:X34) -> 0 | Y35: 0 | Z35: 0 | AA35: 0 | AB35: =SUM(AB32:AB34) -> 0 | AC35: 0 | AD35: 0 | AE35: 0 | AF35: =SUM(AF32:AF34) -> 0 | AG35: 0 | AH35: 0 | AI35: 0 | AJ35: =SUM(AJ32:AJ34) -> 0 | AK35: 0 | AL35: 0
H36: SALDO CONTRATO | K36: =J35-K35 -> 0 | L36: =K36-O35-N35 -> 0 | M36: =L35-M35 -> 0 | N36: =M35-N35 -> 0 | O36: =N35-O35 -> 0 | P36: =O36-S35-R35 -> 0 | Q36: =P35-Q35 -> 0 | R36: =Q35-R35 -> 0 | S36: =R35-S35 -> 0 | T36: =O36-W35-V35 -> 0 | U36: =T35-U35 -> 0 | V36: =U35-V35 -> 0 | W36: =V35-W35 -> 0 | X36: =S36-AA35-Z35 -> 0 | Y36: =X35-Y35 -> 0 | Z36: =Y35-Z35 -> 0 | AA36: =Z35-AA35 -> 0 | AB36: =W36-AE35-AD35 -> 0 | AC36: =AB35-AC35 -> 0 | AD36: =AC35-AD35 -> 0 | AE36: =AD35-AE35 -> 0 | AF36: =S36-AI35-AH35 -> 0 | AG36: =AF35-AG35 -> 0 | AH36: =AG35-AH35 -> 0 | AI36: =AH35-AI35 -> 0
A39: OBSERVACIONES
A41: Elaboró: Responsable Unidad Gestora | B41: _____________________________________________ | F41: ____________________
A42: Nota: Imprimir completo, legible al 50% y siempre con la información del contrato (encabezado).

Sheet INSTRUCTIVO
G3: Despliegue la lista y escoja el PDA (Departamento).
G4: Fecha de actualización del plan de pagos. (Fecha actual en la cual se esta presentando el pago para trámite)
G5: Número de contrato
G7: Número de Nit o documento de identificación de contratista
G8: Nombre completo de contratista
G9: Valor en números contrato inicial
G10: Valor en números contrato de adición
G13: La suma de contrato inicila mas adiciones.
J18: Digitar el objeto del contrato a pagar, tal como se evidencia en el documento contractual.
A29: Digitar la cláusula y el detalle de forma de pago conforme a lo establecido en el contrato inicial. | G29: Digitar el detalle de forma de pago conforme a lo establecido en el contrato de adiciòn, en los casos que aplique
E39: Se debe generar un registro por cada CDR y fuente se utilice
C47: Departamento o municipio que corresponda siempre debe incluir nombre y codigo DANE | E47: Digite el número de CDR expedido para amparar el contrato, fecha (el mes siempre debe venir en letras) y valor | I47: Seleccionar fuente de acuerdo a CDR

Sheet LISTADOS (hidden)
A1: DEPARTAMENTO | B1: AMAZONAS | C1: ANTIOQUIA | D1: ARAUCA | E1: ATLÁNTICO | F1: BOLÍVAR | G1: BOYACÁ | H1: CALDAS | I1: CAQUETÁ | J1: CASANARE | K1: CAUCA | L1: CESAR | M1: CHOCÓ | N1: CÓRDOBA | O1: CUNDINAMARCA | P1: GUAINÍA | Q1: GUAVIARE | R1: HUILA | S1: LA GUAJIRA | T1: MAGDALENA | U1: META | V1: NARIÑO | W1: PDA_NEIVA | X1: NORTE_DE_SANTANDER | Y1: PUTUMAYO | Z1: QUINDIO | AA1: RISARALDA | AB1: SAN_ANDRÉS | AC1: SANTANDER | AD1: SUCRE | AE1: TOLIMA | AF1: VALLE_DEL_CAUCA | AG1: VAUPÉS | AH1: VICHADA
A2: AMAZONAS | B2: EL ENCANTO | C2: ABEJORRAL | D2: ARAUCA - DEPARTAMENTO | E2: ATLANTICO | F2: ACHI | G2: ALMEIDA | H2: AGUADAS | I2: ALBANIA - CAQUETA | J2: AGUAZUL | K2: ALMAGUER | L2: AGUACHICA | M2: ACANDI | N2: AYAPEL | O2: AGUA DE DIOS | P2: BARRANCO MINAS | Q2: CALAMAR - GUAVIARE | R2: ACEVEDO | S2: ALBANIA - LA GUAJIRA | T2: ALGARROBO | U2: ACACIAS | V2: ALBAN - NARIÑO | W2: NEIVA | X2: ABREGO | Y2: COLON - PUTUMAYO | Z2: ARMENIA - QUINDIO | AA2: APIA | AB2: PROVIDENCIA - SAN ANDRES | AC2: AGUADA | AD2: BUENAVISTA | AE2: ALPUJARRA | AF2: ALCALA | AG2: CARURU | AH2: CUMARIBO
A3: ANTIOQUIA | B3: LA CHORRERA | C3: ABRIAQUI | D3: ARAUCA - MUNICIPIO | E3: BARANOA | F3: ALTOS DEL ROSARIO | G3: AQUITANIA | H3: ANSERMA | I3: BELEN DE LOS ANDAQUIES | J3: CASANARE | K3: ARGELIA - CAUCA | L3: AGUSTIN CODAZZI | M3: ALTO BAUDO | N3: BUENAVISTA - CORDOBA | O3: ALBAN - CUNDINAMARCA | P3: CACAHUAL | Q3: EL RETORNO | R3: AGRADO | S3: BARRANCAS | T3: ARACATACA | U3: BARRANCA DE UPIA | V3: ALDANA | X3: ARBOLEDAS | Y3: LEGUIZAMO | Z3: BUENAVISTA - QUINDIO | AA3: BALBOA - RISARALDA | AB3: SAN ANDRES - MUNICIPIO | AC3: ALBANIA - SANTANDER | AD3: CAIMITO | AE3: ALVARADO | AF3: ANDALUCIA | AG3: MITU | AH3: LA PRIMAVERA
A4: ARAUCA | B4: LA PEDRERA | C4: ALEJANDRIA | D4: ARAUQUITA | E4: BARRANQUILLA | F4: ARENAL | G4: ARCABUCO | H4: ARANZAZU | I4: CAQUETA | J4: CHAMEZA | K4: BALBOA - CAUCA | L4: ASTREA | M4: ATRATO | N4: CANALETE | O4: ANAPOIMA | P4: GUAINIA | Q4: GUAVIARE | R4: AIPE | S4: DIBULLA | T4: ARIGUANI | U4: CABUYARO | V4: ANCUYA | X4: BOCHALEMA | Y4: MOCOA | Z4: CALARCA | AA4: BELEN DE UMBRIA | AB4: SAN ANDRES - DPTO. | AC4: ARATOCA | AD4: CHALAN | AE4: AMBALEMA | AF4: ANSERMANUEVO | AG4: PACOA | AH4: PUERTO CARREÑO
A5: ATLÁNTICO | B5: LA VICTORIA - AMAZONAS | C5: AMAGA | D5: CRAVO NORTE | E5: CAMPO DE LA CRUZ | F5: ARJONA | G5: BELEN - BOYACA | H5: BELALCAZAR | I5: CARTAGENA DEL CHAIRA | J5: HATO COROZAL | K5: BOLIVAR - CAUCA | L5: BECERRIL | M5: BAGADO | N5: CERETE | O5: ANOLAIMA | P5: INIRIDA | Q5: MIRAFLORES - GUAVIARE | R5: ALGECIRAS | S5: DISTRACCION | T5: CERRO SAN ANTONIO | U5: CASTILLA LA NUEVA | V5: ARBOLEDA | X5: BUCARASICA | Y5: ORITO | Z5: CIRCASIA | AA5: DOSQUEBRADAS | AC5: BARBOSA - SANTANDER | AD5: COLOSO | AE5: ANZOATEGUI | AF5: ARGELIA | AG5: PAPUNAUA | AH5: SANTA ROSALIA
A6: BOLÍVAR | B6: LETICIA | C6: AMALFI | D6: FORTUL | E6: CANDELARIA - ATLANTICO | F6: ARROYOHONDO | G6: BERBEO | H6: CALDAS -DPTO. | I6: CURILLO | J6: LA SALINA | K6: BUENOS AIRES | L6: BOSCONIA | M6: BAHIA SOLANO | N6: CHIMA - CORDOBA | O6: APULO | P6: LA GUADALUPE | Q6: SAN JOSE DEL GUAVIARE | R6: ALTAMIRA | S6: EL MOLINO | T6: CHIBOLO | U6: CUBARRAL | V6: BARBACOAS | X6: CACHIRA | Y6: PUERTO ASIS | Z6: CORDOBA - QUINDIO | AA6: GUATICA | AC6: BARICHARA | AD6: COROZAL | AE6: ARMERO | AF6: BOLIVAR - VALLE DEL CAUCA | AG6: TARAIRA | AH6: SANTA ROSALÍA
A7: BOYACÁ | B7: MIRITI - PARANA | C7: ANDES | D7: PUERTO RONDON | E7: GALAPA | F7: BARRANCO DE LOBA | G7: BETEITIVA | H7: CHINCHINA | I7: EL DONCELLO | J7: MANI | K7: CAJIBIO | L7: CESAR | M7: BAJO BAUDO | N7: CHINU | O7: ARBELAEZ | P7: MAPIRIPANA | R7: BARAYA | S7: FONSECA | T7: CIENAGA | U7: CUMARAL | V7: BELEN - NARIÑO | X7: CACOTA | Y7: PUERTO CAICEDO | Z7: FILANDIA | AA7: LA CELIA | AC7: BARRANCABERMEJA | AD7: COVEÑAS | AE7: ATACO | AF7: BUENAVENTURA | AG7: VAUPES | AH7: VICHADA
A8: CALDAS | B8: PUERTO ALEGRIA | C8: ANGELOPOLIS | D8: SARAVENA | E8: JUAN DE ACOSTA | F8: BOLIVAR | G8: BOAVITA | H8: FILADELFIA | I8: EL PAUJIL | J8: MONTERREY | K8: CALDONO | L8: CHIMICHAGUA | M8: BOJAYA | N8: CIENAGA DE ORO | O8: BELTRAN | P8: MORICHAL | R8: CAMPOALEGRE | S8: HATONUEVO | T8: CONCORDIA - MAGDALENA | U8: EL CALVARIO | V8: BUESACO | X8: CHINACOTA | Y8: PUERTO GUZMAN | Z8: GENOVA | AA8: LA VIRGINIA | AC8: BETULIA - SANTANDER | AD8: EL ROBLE | AE8: CAJAMARCA | AF8: BUGALAGRANDE | AG8: YAVARATE
A9: CAQUETÁ | B9: PUERTO ARICA | C9: ANGOSTURA | D9: TAME | E9: LURUACO | F9: CALAMAR - BOLIVAR | G9: BOYACA - MUNICIPIO | H9: LA DORADA | I9: FLORENCIA - CAQUETA | J9: NUNCHIA | K9: CALOTO | L9: CHIRIGUANA | M9: CARMEN DEL DARIEN | N9: CORDOBA | O9: BITUIMA | P9: PANA PANA | R9: COLOMBIA | S9: LA GUAJIRA | T9: EL BANCO | U9: EL CASTILLO | V9: CHACHAGsI | X9: CHITAGA | Y9: PUTUMAYO | Z9: LA TEBAIDA | AA9: MARSELLA | AC9: BOLIVAR - SANTANDER | AD9: GALERAS | AE9: CARMEN DE APICALA | AF9: CAICEDONIA
A10: CASANARE | B10: PUERTO NARIÑO | C10: ANORI | E10: MALAMBO | F10: CANTAGALLO | G10: BOYACA- DEPARTAMENTO | H10: LA MERCED | I10: LA MONTAÑITA | J10: OROCUE | K10: CAUCA | L10: CURUMANI | M10: CERTEGUI | N10: COTORRA | O10: BOJACA | P10: PUERTO COLOMBIA - GUAINIA | R10: ELIAS | S10: LA JAGUA DEL PILAR | T10: EL PIÑON | U10: EL DORADO | V10: COLON - NARIÑO | X10: CONVENCION | Y10: SAN FRANCISCO - PUTUMAYO | Z10: MONTENEGRO | AA10: MISTRATO | AC10: BUCARAMANGA | AD10: GUARANDA | AE10: CASABIANCA | AF10: CALI
A11: CAUCA | B11: PUERTO SANTANDER - AMAZONAS | C11: ANZA | E11: MANATI | F11: CARTAGENA | G11: BRICEÑO - BOYACA | H11: MANIZALES | I11: MILAN | J11: PAZ DE ARIPORO | K11: CORINTO | L11: EL COPEY | M11: CHOCO | N11: LA APARTADA | O11: CABRERA - CUNDINAMARCA | P11: SAN FELIPE | R11: GARZON | S11: MAICAO | T11: EL RETEN | U11: FUENTE DE ORO | V11: CONSACA | X11: CUCUTA | Y11: SAN MIGUEL - PUTUMAYO | Z11: PIJAO | AA11: PEREIRA | AC11: CABRERA - SANTANDER | AD11: LA UNION - SUCRE | AE11: CHAPARRAL | AF11: CALIMA
A12: CESAR | B12: TARAPACA | C12: APARTADO | E12: PALMAR DE VARELA | F12: CICUCO | G12: BUENAVISTA - BOYACA | H12: MANZANARES | I12: MORELIA | J12: PORE | K12: EL TAMBO - CAUCA | L12: EL PASO | M12: CONDOTO | N12: LORICA | O12: CACHIPAY | R12: GIGANTE | S12: MANAURE - LA GUAJIRA | T12: FUNDACION | U12: GRANADA | V12: CONTADERO | X12: CUCUTILLA | Y12: SANTIAGO - PUTUMAYO | Z12: QUIMBAYA | AA12: PUEBLO RICO | AC12: CALIFORNIA | AD12: LOS PALMITOS | AE12: COELLO | AF12: CANDELARIA
A13: CHOCÓ | C13: ARBOLETES | E13: PIOJO | F13: CLEMENCIA | G13: BUSBANZA | H13: MARMATO | I13: PUERTO RICO - CAQUETA | J13: RECETOR | K13: FLORENCIA - CAUCA | L13: GAMARRA | M13: EL CANTON DEL SAN PABLO | N13: LOS CORDOBAS | O13: CAJICA | R13: GUADALUPE - HUILA | S13: RIOHACHA | T13: GUAMAL - MAGDALENA | U13: GUAMAL - META | V13: CORDOBA - NARIÑO | X13: DURANIA | Y13: SIBUNDOY | Z13: QUINDIO | AA13: QUINCHIA | AC13: CAPITANEJO | AD13: MAJAGUAL | AE13: COYAIMA | AF13: CARTAGO
A14: CÓRDOBA | C14: ARGELIA - ANTIOQUIA | E14: POLONUEVO | F14: CORDOBA - BOLIVAR | G14: CALDAS - BOYACA | H14: MARQUETALIA | I14: SAN JOSE DEL FRAGUA | J14: SABANALARGA | K14: GUACHENE | L14: GONZALEZ | M14: EL CARMEN DE ATRATO | N14: MOMIL | O14: CAPARRAPI | R14: HOBO | S14: SAN JUAN DEL CESAR | T14: MAGDALENA | U14: LA MACARENA | V14: CUASPUD | X14: EL CARMEN | Y14: VALLE DEL GUAMUEZ | Z14: SALENTO | AA14: RISARALDA - RISARALDA | AC14: CARCASI | AD14: MORROA | AE14: CUNDAY | AF14: DAGUA
A15: CUNDINAMARCA | C15: ARMENIA - ANTIOQUIA | E15: PONEDERA | F15: EL CARMEN DE BOLIVAR | G15: CAMPOHERMOSO | H15: MARULANDA | I15: SAN VICENTE DEL CAGUAN | J15: SACAMA | K15: GUAPI | L15: LA GLORIA | M15: EL LITORAL DEL SAN JUAN | N15: MONTELIBANO | O15: CAQUEZA | R15: HUILA | S15: URIBIA | T15: NUEVA GRANADA | U15: LEJANIAS | V15: CUMBAL | X15: EL TARRA | Y15: VILLAGARZON | AA15: SANTA ROSA DE CABAL | AC15: CEPITA | AD15: OVEJAS | AE15: DOLORES | AF15: EL AGUILA
A16: GUAINÍA | C16: BARBOSA - ANTIOQUIA | E16: PUERTO COLOMBIA - ATLANTICO | F16: EL GUAMO | G16: CERINZA | H16: NEIRA | I16: SOLANO | J16: SAN LUIS DE PALENQUE | K16: INZA | L16: LA JAGUA DE IBIRICO | M16: ISTMINA | N16: MONTERIA | O16: CARMEN DE CARUPA | R16: IQUIRA | S16: URUMITA | T16: PEDRAZA | U16: MAPIRIPAN | V16: CUMBITARA | X16: EL ZULIA | AA16: SANTUARIO | AC16: CERRITO | AD16: PALMITO | AE16: ESPINAL | AF16: EL CAIRO
A17: GUAVIARE | C17: BELLO | E17: REPELON | F17: EL PEÑON - BOLIVAR | G17: CHINAVITA | H17: NORCASIA | I17: SOLITA | J17: TAMARA | K17: JAMBALO | L17: LA PAZ - CESAR | M17: JURADO | N17: MOÑITOS | O17: CHAGUANI | R17: ISNOS | S17: VILLANUEVA - LA GUAJIRA | T17: PIJIÑO DEL CARMEN | U17: MESETAS | V17: EL CHARCO | X17: GRAMALOTE | AC17: CHARALA | AD17: SAMPUES | AE17: FALAN | AF17: EL CERRITO
A18: HUILA | C18: BELMIRA | E18: SABANAGRANDE | F18: HATILLO DE LOBA | G18: CHIQUINQUIRA | H18: PACORA | I18: VALPARAISO | J18: TAURAMENA | K18: LA SIERRA | L18: MANAURE - CESAR | M18: LLORO | N18: PLANETA RICA | O18: CHIA | R18: LA ARGENTINA | T18: PIVIJAY | U18: META | V18: EL PEÑOL | X18: HACARI | AC18: CHARTA | AD18: SAN BENITO ABAD | AE18: FLANDES | AF18: EL DOVIO
A19: LA GUAJIRA | C19: BETANIA | E19: SABANALARGA - ATLANTICO | F19: MAGANGUE | G19: CHIQUIZA | H19: PALESTINA - CALDAS | J19: TRINIDAD | K19: LA VEGA - CAUCA | L19: PAILITAS | M19: MEDIO ATRATO | N19: PUEBLO NUEVO | O19: CHIPAQUE | R19: LA PLATA | T19: PLATO | U19: PUERTO CONCORDIA | V19: EL ROSARIO | X19: HERRAN | AC19: CHIMA - SANTANDER | AD19: SAN JUAN DE BETULIA | AE19: FRESNO | AF19: FLORIDA
A20: MAGDALENA | C20: BETULIA - ANTIOQUIA | E20: SANTA LUCIA | F20: MAHATES | G20: CHISCAS | H20: PENSILVANIA | J20: VILLANUEVA | K20: LOPEZ | L20: PELAYA | M20: MEDIO BAUDO | N20: PUERTO ESCONDIDO | O20: CHOACHI | R20: NATAGA | T20: PUEBLOVIEJO | U20: PUERTO GAITAN | V20: EL TABLON DE GOMEZ | X20: LA ESPERANZA | AC20: CHIPATA | AD20: SAN LUIS DE SINCE | AE20: GUAMO | AF20: GINEBRA
A21: META | C21: BRICEÑO - ANTIOQUIA | E21: SANTO TOMAS | F21: MARGARITA | G21: CHITA | H21: RIOSUCIO | J21: YOPAL | K21: MERCADERES | L21: PUEBLO BELLO | M21: MEDIO SAN JUAN | N21: PUERTO LIBERTADOR | O21: CHOCONTA | R21: NEIVA | T21: REMOLINO | U21: PUERTO LLERAS | V21: EL TAMBO - NARIÑO | X21: LA PLAYA | AC21: CIMITARRA | AD21: SAN MARCOS | AE21: HERVEO | AF21: GUACARI
A22: NARIÑO | C22: BURITICA | E22: SOLEDAD | F22: MARIA LA BAJA | G22: CHITARAQUE | H22: RISARALDA - CALDAS | K22: MIRANDA | L22: RIO DE ORO | M22: NOVITA | N22: PURISIMA | O22: COGUA | R22: OPORAPA | T22: SABANAS DE SAN ANGEL | U22: PUERTO LOPEZ | V22: FRANCISCO PIZARRO | X22: LABATECA | AC22: CONCEPCION - SANTANDER | AD22: SAN ONOFRE | AE22: HONDA | AF22: GUADALAJARA DE BUGA
A23: PDA_NEIVA | C23: CACERES | E23: SUAN | F23: MOMPOS | G23: CHIVATA | H23: SALAMINA - CALDAS | K23: MORALES - CAUCA | L23: SAN ALBERTO | M23: NUQUI | N23: SAHAGUN | O23: COTA | R23: PAICOL | T23: SALAMINA - MAGDALENA | U23: PUERTO RICO - META | V23: FUNES | X23: LOS PATIOS | AC23: CONFINES | AD23: SAN PEDRO - SUCRE | AE23: IBAGUE | AF23: JAMUNDI
A24: NORTE_DE_SANTANDER | C24: CAICEDO | E24: TUBARA | F24: MONTECRISTO | G24: CHIVOR | H24: SAMANA | K24: PADILLA | L24: SAN DIEGO | M24: QUIBDO | N24: SAN ANDRES SOTAVENTO | O24: CUCUNUBA | R24: PALERMO | T24: SAN SEBASTIAN DE BUENAVISTA | U24: RESTREPO - META | V24: GUACHUCAL | X24: LOURDES | AC24: CONTRATACION | AD24: SANTIAGO DE TOLU | AE24: ICONONZO | AF24: LA CUMBRE
A25: PUTUMAYO | C25: CALDAS - ANTIOQUIA | E25: USIACURI | F25: MORALES - BOLIVAR | G25: CIENEGA | H25: SAN JOSE | K25: PAEZ - CAUCA | L25: SAN MARTIN - CESAR | M25: RIO IRO | N25: SAN ANTERO | O25: CUNDINAMARCA | R25: PALESTINA - HUILA | T25: SAN ZENON | U25: SAN CARLOS DE GUAROA | V25: GUAITARILLA | X25: MUTISCUA | AC25: COROMORO | AD25: SINCELEJO | AE25: LERIDA | AF25: LA UNION - VALLE DEL CAUCA
A26: QUINDIO | C26: CAMPAMENTO | F26: NOROSI | G26: COMBITA | H26: SUPIA | K26: PATIA | L26: TAMALAMEQUE | M26: RIO QUITO | N26: SAN BERNARDO DEL VIENTO | O26: EL COLEGIO | R26: PITAL | T26: SANTA ANA | U26: SAN JUAN DE ARAMA | V26: GUALMATAN | X26: NORTE DE SANTANDER | AC26: CURITI | AD26: SUCRE - MUNICIPIO | AE26: LIBANO | AF26: LA VICTORIA - VALLE DEL CAUCA
A27: RISARALDA | C27: CAÑASGORDAS | F27: PINILLOS | G27: COPER | H27: VICTORIA | K27: PIAMONTE | L27: VALLEDUPAR | M27: RIOSUCIO | N27: SAN CARLOS - CORDOBA | O27: EL PEÑON - CUNDINAMARCA | R27: PITALITO | T27: SANTA BARBARA DE PINTO | U27: SAN JUANITO | V27: ILES | X27: OCAÑA | AC27: EL CARMEN DE CHUCURI | AD27: SUCRE - DPTO. | AE27: MARIQUITA | AF27: OBANDO
A28: SAN_ANDRÉS | C28: CARACOLI | F28: REGIDOR | G28: CORRALES | H28: VILLAMARIA | K28: PIENDAMO | M28: SAN JOSE DEL PALMAR | N28: SAN PELAYO | O28: EL ROSAL | R28: RIVERA | T28: SANTA MARTA | U28: SAN MARTIN - META | V28: IMUES | X28: PAMPLONA | AC28: EL GUACAMAYO | AD28: TOLU VIEJO | AE28: MELGAR | AF28: PALMIRA
A29: SANTANDER | C29: CARAMANTA | F29: RIO VIEJO | G29: COVARACHIA | H29: VITERBO | K29: POPAYAN | M29: SIPI | N29: TIERRALTA | O29: FACATATIVA | R29: SALADOBLANCO | T29: SITIONUEVO | U29: URIBE | V29: IPIALES | X29: PAMPLONITA | AC29: EL PEÑON | AE29: MURILLO | AF29: PRADERA
A30: SUCRE | C30: CAREPA | F30: SAN CRISTOBAL | G30: CUBARA | K30: PUERTO TEJADA | M30: TADO | N30: VALENCIA | O30: FOMEQUE | R30: SAN AGUSTIN | T30: TENERIFE | U30: VILLAVICENCIO | V30: LA CRUZ | X30: PUERTO SANTANDER - NTE SANTANDER | AC30: EL PLAYON | AE30: NATAGAIMA | AF30: RESTREPO - VALLE DEL CAUCA
A31: TOLIMA | C31: CAROLINA | F31: SAN ESTANISLAO | G31: CUCAITA | K31: PURACE | M31: UNGUIA | O31: FOSCA | R31: SANTA MARIA - HUILA | T31: ZAPAYAN | U31: VISTAHERMOSA | V31: LA FLORIDA | X31: RAGONVALIA | AC31: ENCINO | AE31: ORTEGA | AF31: RIOFRIO
A32: VALLE_DEL_CAUCA | C32: CAUCASIA | F32: SAN FERNANDO | G32: CUITIVA | K32: ROSAS | M32: UNION PANAMERICANA | O32: FUNZA | R32: SUAZA | T32: ZONA BANANERA | V32: LA LLANADA | X32: SALAZAR | AC32: ENCISO | AE32: PALOCABILDO | AF32: ROLDANILLO
A33: VAUPÉS | C33: CHIGORODO | F33: SAN JACINTO | G33: DUITAMA | K33: SAN SEBASTIAN | O33: FUQUENE | R33: TARQUI | V33: LA TOLA | X33: SAN CALIXTO | AC33: FLORIAN | AE33: PIEDRAS | AF33: SAN PEDRO - VALLE DEL CAUCA
A34: VICHADA | C34: CISNEROS | F34: SAN JACINTO DEL CAUCA | G34: EL COCUY | K34: SANTA ROSA - CAUCA | O34: FUSAGASUGA | R34: TELLO | V34: LA UNION - NARIÑO | X34: SAN CAYETANO - NTE DE SANTANDER | AC34: FLORIDABLANCA | AE34: PLANADAS | AF34: SEVILLA
C35: CIUDAD BOLIVAR | F35: SAN JUAN NEPOMUCENO | G35: EL ESPINO | K35: SANTANDER DE QUILICHAO | O35: GACHALA | R35: TERUEL | V35: LEIVA | X35: SANTIAGO - NTE SANTANDER | AC35: GALAN | AE35: PRADO | AF35: TORO
C36: COCORNA | F36: SAN MARTIN DE LOBA | G36: FIRAVITOBA | K36: SILVIA | O36: GACHANCIPA | R36: TESALIA | V36: LINARES | X36: SARDINATA | AC36: GAMBITA | AE36: PURIFICACION | AF36: TRUJILLO
C37: CONCEPCION - ANTIOQUIA | F37: SAN PABLO - BOLIVAR | G37: FLORESTA | K37: SOTARA | O37: GACHETA | R37: TIMANA | V37: LOS ANDES | X37: SILOS | AC37: GIRON | AE37: RIOBLANCO | AF37: TULUA
C38: CONCORDIA - ANTIOQUIA | F38: SANTA CATALINA | G38: GACHANTIVA | K38: SUAREZ - CAUCA | O38: GAMA | R38: VILLAVIEJA | V38: MAGsI | X38: TEORAMA | AC38: GsEPSA | AE38: RONCESVALLES | AF38: ULLOA
C39: COPACABANA | F39: SANTA ROSA - BOLIVAR | G39: GAMEZA | K39: SUCRE - CAUCA | O39: GIRARDOT | R39: YAGUARA | V39: MALLAMA | X39: TIBU | AC39: GUACA | AE39: ROVIRA | AF39: VALLE DEL CAUCA
C40: DABEIBA | F40: SANTA ROSA DEL SUR | G40: GARAGOA | K40: TIMBIO | O40: GRANADA - CUNDINAMARCA | V40: MOSQUERA - NARIÑO | X40: TOLEDO- NTE SANTANDER | AC40: GUADALUPE - SANTANDER | AE40: SALDAÑA | AF40: VERSALLES
C41: DON MATIAS | F41: SIMITI | G41: GsICAN | K41: TIMBIQUI | O41: GUACHETA | V41: NARIÑO - MUNICIPIO | X41: VILLA CARO | AC41: GUAPOTA | AE41: SAN ANTONIO | AF41: VIJES
C42: EBEJICO | F42: SOPLAVIENTO | G42: GUACAMAYAS | K42: TORIBIO | O42: GUADUAS | V42: NARIÑO - DPTO. | X42: VILLA DEL ROSARIO | AC42: GUAVATA | AE42: SAN LUIS - TOLIMA | AF42: YOTOCO
C43: EL BAGRE | F43: TALAIGUA NUEVO | G43: GUATEQUE | K43: TOTORO | O43: GUASCA | V43: OLAYA HERRERA | AC43: HATO | AE43: SANTA ISABEL | AF43: YUMBO
C44: EL CARMEN DE VIBORAL | F44: TIQUISIO | G44: GUAYATA | K44: VILLA RICA | O44: GUATAQUI | V44: OSPINA | AC44: JESUS MARIA | AE44: SUAREZ - TOLIMA | AF44: ZARZAL
C45: EL SANTUARIO | F45: TURBACO | G45: IZA | O45: GUATAVITA | V45: PASTO | AC45: JORDAN | AE45: TOLIMA
C46: ENTRERRIOS | F46: TURBANA | G46: JENESANO | O46: GUAYABAL DE SIQUIMA | V46: POLICARPA | AC46: LA BELLEZA | AE46: VALLE DE SAN JUAN
C47: ENVIGADO | F47: VILLANUEVA - BOLIVAR | G47: JERICO - BOYACA | O47: GUAYABETAL | V47: POTOSI | AC47: LA PAZ - SANTANDER | AE47: VENADILLO
C48: FREDONIA | F48: ZAMBRANO | G48: LA CAPILLA | O48: GUTIERREZ | V48: PROVIDENCIA - NARIÑO | AC48: LANDAZURI | AE48: VILLAHERMOSA
C49: FRONTINO | G49: LA UVITA | O49: JERUSALEN | V49: PUERRES | AC49: LEBRIJA | AE49: VILLARRICA
C50: GIRALDO | G50: LA VICTORIA - BOYACA | O50: JUNIN | V50: PUPIALES | AC50: LOS SANTOS
C51: GIRARDOTA | G51: LABRANZAGRANDE | O51: LA CALERA | V51: RICAURTE - NARIÑO | AC51: MACARAVITA
C52: GOMEZ PLATA | G52: MACANAL | O52: LA MESA | V52: ROBERTO PAYAN | AC52: MALAGA
C53: GRANADA - ANTIOQUIA | G53: MARIPI | O53: LA PALMA | V53: SAMANIEGO | AC53: MATANZA
C54: GUADALUPE - ANTIOQUIA | G54: MIRAFLORES - BOYACA | O54: LA PEÑA | V54: SAN ANDRES DE TUMACO | AC54: MOGOTES
C55: GUARNE | G55: MONGUA | O55: LA VEGA - CUNDIMARCA | V55: SAN BERNARDO - NARIÑO | AC55: MOLAGAVITA
C56: GUATAPE | G56: MONGUI | O56: LENGUAZAQUE | V56: SAN LORENZO | AC56: OCAMONTE
C57: HELICONIA | G57: MONIQUIRA | O57: MACHETA | V57: SAN PABLO - NARIÑO | AC57: OIBA
C58: HISPANIA | G58: MOTAVITA | O58: MADRID | V58: SAN PEDRO DE CARTAGO | AC58: ONZAGA
C59: ITAGUI | G59: MUZO | O59: MANTA | V59: SANDONA | AC59: PALMAR
C60: ITUANGO | G60: NOBSA | O60: MEDINA | V60: SANTA BARBARA - NARIÑO | AC60: PALMAS DEL SOCORRO
C61: JARDIN | G61: NUEVO COLON | O61: MOSQUERA - CUNDINAMARCA | V61: SANTACRUZ | AC61: PARAMO
C62: JERICO - ANTIOQUIA | G62: OICATA | O62: NARIÑO - CUNDINAMARCA | V62: SAPUYES | AC62: PIEDECUESTA
C63: LA CEJA | G63: OTANCHE | O63: NEMOCON | V63: TAMINANGO | AC63: PINCHOTE
C64: LA ESTRELLA | G64: PACHAVITA | O64: NILO | V64: TANGUA | AC64: PUENTE NACIONAL
C65: LA PINTADA | G65: PAEZ - BOYACA | O65: NIMAIMA | V65: TUQUERRES | AC65: PUERTO PARRA
C66: LA UNION - ANTIOQUIA | G66: PAIPA | O66: NOCAIMA | V66: YACUANQUER | AC66: PUERTO WILCHES
C67: LIBORINA | G67: PAJARITO | O67: PACHO | AC67: RIONEGRO - SANTANDER
C68: MACEO | G68: PANQUEBA | O68: PAIME | AC68: SABANA DE TORRES
C69: MARINILLA | G69: PAUNA | O69: PANDI | AC69: SAN ANDRES - SANTANDER
C70: MEDELLIN | G70: PAYA | O70: PARATEBUENO | AC70: SAN BENITO
C71: MONTEBELLO | G71: PAZ DE RIO | O71: PASCA | AC71: SAN GIL
C72: MURINDO | G72: PESCA | O72: PUERTO SALGAR | AC72: SAN JOAQUIN
C73: MUTATA | G73: PISBA | O73: PULI | AC73: SAN JOSE DE MIRANDA
C74: NARIÑO - ANTIOQUIA | G74: PUERTO BOYACA | O74: QUEBRADANEGRA | AC74: SAN MIGUEL - SANTANDER
C75: NECHI | G75: QUIPAMA | O75: QUETAME | AC75: SAN VICENTE DE CHUCURI
C76: NECOCLI | G76: RAMIRIQUI | O76: QUIPILE | AC76: SANTA BARBARA - SANTANDER
C77: OLAYA | G77: RAQUIRA | O77: RICAURTE - CUNDINAMARCA | AC77: SANTA HELENA DEL OPON
C78: PEÐOL | G78: RONDON | O78: SAN ANTONIO DEL TEQUENDAMA | AC78: SANTANDER
C79: PEQUE | G79: SABOYA | O79: SAN BERNARDO - CUNDINAMARCA | AC79: SIMACOTA
C80: PUEBLORRICO | G80: SACHICA | O80: SAN CAYETANO - CUNDINAMARCA | AC80: SOCORRO
C81: PUERTO BERRIO | G81: SAMACA | O81: SAN FRANCISCO - CUNDINAMARCA | AC81: SUAITA
C82: PUERTO NARE | G82: SAN EDUARDO | O82: SAN JUAN DE RIO SECO | AC82: SUCRE - SANTANDER
C83: PUERTO TRIUNFO | G83: SAN JOSE DE PARE | O83: SASAIMA | AC83: SURATA
C84: REMEDIOS | G84: SAN LUIS DE GACENO | O84: SESQUILE | AC84: TONA
C85: RETIRO | G85: SAN MATEO | O85: SIBATE | AC85: VALLE DE SAN JOSE
C86: RIONEGRO - ANTIOQUIA | G86: SAN MIGUEL DE SEMA | O86: SILVANIA | AC86: VELEZ
C87: SABANALARGA - ANTIOQUIA | G87: SAN PABLO DE BORBUR | O87: SIMIJACA | AC87: VETAS
C88: SABANETA | G88: SANTA MARIA - BOYACA | O88: SOACHA | AC88: VILLANUEVA - SANTANDER
C89: SALGAR | G89: SANTA ROSA DE VITERBO | O89: SOPO | AC89: ZAPATOCA
C90: SAN ANDRES DE CUERQUIA | G90: SANTA SOFIA | O90: SUBACHOQUE
C91: SAN CARLOS - ANTIOQUIA | G91: SANTANA | O91: SUESCA
C92: SAN FRANCISCO - ANTIOQUIA | G92: SATIVANORTE | O92: SUPATA
C93: SAN JERONIMO | G93: SATIVASUR | O93: SUSA
C94: SAN JOSE DE LA MONTAÑA | G94: SIACHOQUE | O94: SUTATAUSA
C95: SAN JUAN DE URABA | G95: SOATA | O95: TABIO
C96: SAN LUIS - ANTIOQUIA | G96: SOCHA | O96: TAUSA
C97: SAN PEDRO - ANTIOQUIA | G97: SOCOTA | O97: TENA
C98: SAN PEDRO DE URABA | G98: SOGAMOSO | O98: TENJO
C99: SAN RAFAEL | G99: SOMONDOCO | O99: TIBACUY
C100: SAN ROQUE | G100: SORA | O100: TIBIRITA
C101: SAN VICENTE | G101: SORACA | O101: TOCAIMA
C102: SANTA BARBARA - ANTIOQUIA | G102: SOTAQUIRA | O102: TOCANCIPA
C103: SANTA ROSA DE OSOS | G103: SUSACON | O103: TOPAIPI
C104: SANTAFE DE ANTIOQUIA | G104: SUTAMARCHAN | O104: UBALA
C105: SANTO DOMINGO | G105: SUTATENZA | O105: UBAQUE
C106: SEGOVIA | G106: TASCO | O106: UNE
C107: SONSON | G107: TENZA | O107: UTICA
C108: SOPETRAN | G108: TIBANA | O108: VENECIA - CUNDINAMARCA
C109: TAMESIS | G109: TIBASOSA | O109: VERGARA
C110: TARAZA | G110: TINJACA | O110: VIANI
C111: TARSO | G111: TIPACOQUE | O111: VILLA DE SAN DIEGO DE UBATE
C112: TITIRIBI | G112: TOCA | O112: VILLAGOMEZ
C113: TOLEDO-ANTIOQUIA | G113: TOGSI | O113: VILLAPINZON
C114: TURBO | G114: TOPAGA | O114: VILLETA
C115: URAMITA | G115: TOTA | O115: VIOTA
C116: URRAO | G116: TUNJA | O116: YACOPI
C117: VALDIVIA | G117: TUNUNGUA | O117: ZIPACON
C118: VALPARAISO - ANTIOQUIA | G118: TURMEQUE | O118: ZIPAQUIRA
C119: VEGACHI | G119: TUTA | O119: BOGOTA
C120: VENECIA - ANTIOQUIA | G120: TUTAZA | O120: BOGOTA, D.C.
C121: VIGIA DEL FUERTE | G121: UMBITA
C122: YALI | G122: VENTAQUEMADA
C123: YARUMAL | G123: VILLA DE LEYVA
C124: YOLOMBO | G124: VIRACACHA
C125: YONDO | G125: ZETAQUIRA
C126: ZARAGOZA

Sheet CODI_DANE (hidden)
A1: Nombre Departamento | B1: Nombre Municipio | C1: Código Municipio | G1: PAP-PDA
A2: ANTIOQUIA | B2: ABEJORRAL | C2: 5002 | D2: FALSE | F2: AMAZONAS | G2: AMAZONAS | H2: 91000 | I2: =CONCATENATE("PAP-PDA - ",VLOOKUP('Programación de pagos'!$B$6,$F$2:$H$34,3,)) -> PAP-PDA - 68000
A3: N. DE SANTANDER | B3: ABREGO | C3: 54003 | D3: FALSE | F3: ANTIOQUIA | G3: ANTIOQUIA | H3: 5000
A4: ANTIOQUIA | B4: ABRIAQUI | C4: 5004 | D4: FALSE | F4: ARAUCA | G4: ARAUCA | H4: 8100
A5: META | B5: ACACIAS | C5: 50006 | D5: FALSE | F5: ATLÁNTICO | G5: ATLÁNTICO | H5: 8000
A6: CHOCO | B6: ACANDI | C6: 27006 | D6: FALSE | F6: BOLÍVAR | G6: BOLÍVAR | H6: 13000
A7: HUILA | B7: ACEVEDO | C7: 41006 | D7: FALSE | F7: BOYACÁ | G7: BOYACA | H7: 15000
A8: BOLIVAR | B8: ACHI | C8: 13006 | D8: FALSE | F8: CALDAS | G8: CALDAS | H8: 17000
A9: HUILA | B9: AGRADO | C9: 41013 | D9: FALSE | F9: CAQUETÁ | G9: CAQUETA | H9: 18000
A10: CUNDINAMARCA | B10: AGUA DE DIOS | C10: 25001 | D10: FALSE | F10: CASANARE | G10: CASANARE | H10: 85000
A11: CESAR | B11: AGUACHICA | C11: 20011 | D11: FALSE | F11: CAUCA | G11: CAUCA | H11: 19000
A12: SANTANDER | B12: AGUADA | C12: 68013 | D12: FALSE | F12: CESAR | G12: CESAR | H12: 20999
A13: CALDAS | B13: AGUADAS | C13: 17013 | D13: FALSE | F13: CHOCÓ | G13: CHOCÓ | H13: 27000
A14: CASANARE | B14: AGUAZUL | C14: 85010 | D14: FALSE | F14: CÓRDOBA | G14: CÓRDOBA | H14: 23000
A15: CESAR | B15: AGUSTIN CODAZZI | C15: 20013 | D15: FALSE | F15: CUNDINAMARCA | G15: CUNDINAMARCA | H15: 25000
A16: HUILA | B16: AIPE | C16: 41016 | D16: FALSE | F16: GUAINÍA | G16: GUAINÍA | H16: 94000
A17: CUNDINAMARCA | B17: ALBAN - CUNDINAMARCA | C17: 25019 | D17: FALSE | F17: GUAVIARE | G17: GUAVIARE | H17: 95000
A18: NARIÑO | B18: ALBAN - NARIÑO | C18: 52019 | D18: FALSE | F18: HUILA | G18: HUILA | H18: 41000
A19: CAQUETA | B19: ALBANIA - CAQUETA | C19: 18029 | D19: FALSE | F19: PDA_NEIVA | G19: PDA NEIVA | H19: 41001
A20: LA GUAJIRA | B20: ALBANIA - LA GUAJIRA | C20: 44035 | D20: FALSE | F20: LA GUAJIRA | G20: GUAJIRA | H20: 44000
A21: SANTANDER | B21: ALBANIA - SANTANDER | C21: 68020 | D21: FALSE | F21: MAGDALENA | G21: MAGDALENA | H21: 47000
A22: VALLE DEL CAUCA | B22: ALCALA | C22: 76020 | D22: FALSE | F22: META | G22: META | H22: 50000
A23: NARIÑO | B23: ALDANA | C23: 52022 | D23: FALSE | F23: NARIÑO | G23: NARIÑO | H23: 52000
A24: ANTIOQUIA | B24: ALEJANDRIA | C24: 5021 | D24: FALSE | F24: NORTE_DE_SANTANDER | G24: NORTE DE SANTANDER | H24: 54000
A25: MAGDALENA | B25: ALGARROBO | C25: 47030 | D25: FALSE | F25: PUTUMAYO | G25: PUTUMAYO | H25: 86000
A26: HUILA | B26: ALGECIRAS | C26: 41020 | D26: FALSE | F26: QUINDIO | G26: QUINDÍO | H26: 63000
A27: CAUCA | B27: ALMAGUER | C27: 19022 | D27: FALSE | F27: RISARALDA | G27: RISARALDA | H27: 66000
A28: BOYACA | B28: ALMEIDA | C28: 15022 | D28: FALSE | F28: SAN_ANDRÉS | G28: SAN ANDRÉS | H28: 88000
A29: TOLIMA | B29: ALPUJARRA | C29: 73024 | D29: FALSE | F29: SANTANDER | G29: SANTANDER | H29: 68000
A30: HUILA | B30: ALTAMIRA | C30: 41026 | D30: FALSE | F30: SUCRE | G30: SUCRE | H30: 70000
A31: CHOCO | B31: ALTO BAUDO | C31: 27025 | D31: FALSE | F31: TOLIMA | G31: TOLIMA | H31: 73000
A32: BOLIVAR | B32: ALTOS DEL ROSARIO | C32: 13030 | D32: FALSE | F32: VALLE_DEL_CAUCA | G32: VALLE DEL CAUCA | H32: 76000
A33: TOLIMA | B33: ALVARADO | C33: 73026 | D33: FALSE | F33: VAUPÉS | G33: VAUPÉS | H33: 97000
A34: ANTIOQUIA | B34: AMAGA | C34: 5030 | D34: FALSE | F34: VICHADA | G34: VICHADA | H34: 99000
A35: ANTIOQUIA | B35: AMALFI | C35: 5031 | D35: FALSE
A36: AMAZONAS | B36: AMAZONAS | C36: 91999 | D36: FALSE
A37: TOLIMA | B37: AMBALEMA | C37: 73030 | D37: FALSE
A38: CUNDINAMARCA | B38: ANAPOIMA | C38: 25035 | D38: FALSE
A39: NARIÑO | B39: ANCUYA | C39: 52036 | D39: FALSE
A40: VALLE DEL CAUCA | B40: ANDALUCIA | C40: 76036 | D40: FALSE
A41: ANTIOQUIA | B41: ANDES | C41: 5034 | D41: FALSE
A42: ANTIOQUIA | B42: ANGELOPOLIS | C42: 5036 | D42: FALSE
A43: ANTIOQUIA | B43: ANGOSTURA | C43: 5038 | D43: FALSE
A44: CUNDINAMARCA | B44: ANOLAIMA | C44: 25040 | D44: FALSE
A45: ANTIOQUIA | B45: ANORI | C45: 5040 | D45: FALSE
A46: CALDAS | B46: ANSERMA | C46: 17042 | D46: FALSE
A47: VALLE DEL CAUCA | B47: ANSERMANUEVO | C47: 76041 | D47: FALSE
A48: ANTIOQUIA | B48: ANTIOQUIA | C48: 5999 | D48: FALSE
A49: ANTIOQUIA | B49: ANZA | C49: 5044 | D49: FALSE
A50: TOLIMA | B50: ANZOATEGUI | C50: 73043 | D50: FALSE
A51: ANTIOQUIA | B51: APARTADO | C51: 5045 | D51: FALSE
A52: RISARALDA | B52: APIA | C52: 66045 | D52: FALSE
A53: CUNDINAMARCA | B53: APULO | C53: 25599 | D53: FALSE
A54: BOYACA | B54: AQUITANIA | C54: 15047 | D54: FALSE
A55: MAGDALENA | B55: ARACATACA | C55: 47053 | D55: FALSE
A56: CALDAS | B56: ARANZAZU | C56: 17050 | D56: FALSE
A57: SANTANDER | B57: ARATOCA | C57: 68051 | D57: FALSE
A58: ARAUCA | B58: ARAUCA - MUNICIPIO | C58: 81001 | D58: FALSE
A59: ARAUCA | B59: ARAUCA - DEPARTAMENTO | C59: 81999 | D59: FALSE
A60: ARAUCA | B60: ARAUQUITA | C60: 81065 | D60: FALSE
A61: CUNDINAMARCA | B61: ARBELAEZ | C61: 25053 | D61: FALSE
A62: NARIÑO | B62: ARBOLEDA | C62: 52051 | D62: FALSE
A63: N. DE SANTANDER | B63: ARBOLEDAS | C63: 54051 | D63: FALSE
A64: ANTIOQUIA | B64: ARBOLETES | C64: 5051 | D64: FALSE
A65: BOYACA | B65: ARCABUCO | C65: 15051 | D65: FALSE
A66: BOLIVAR | B66: ARENAL | C66: 13042 | D66: FALSE
A67: ANTIOQUIA | B67: ARGELIA - ANTIOQUIA | C67: 5055 | D67: FALSE
A68: CAUCA | B68: ARGELIA - CAUCA | C68: 19050 | D68: FALSE
A69: VALLE DEL CAUCA | B69: ARGELIA | C69: 76054 | D69: FALSE
A70: MAGDALENA | B70: ARIGUANI | C70: 47058 | D70: FALSE
A71: BOLIVAR | B71: ARJONA | C71: 13052 | D71: FALSE
A72: ANTIOQUIA | B72: ARMENIA - ANTIOQUIA | C72: 5059 | D72: FALSE
A73: QUINDIO | B73: ARMENIA - QUINDIO | C73: 63001 | D73: FALSE
A74: TOLIMA | B74: ARMERO | C74: 73055 | D74: FALSE
A75: BOLIVAR | B75: ARROYOHONDO | C75: 13062 | D75: FALSE
A76: CESAR | B76: ASTREA | C76: 20032 | D76: FALSE
A77: TOLIMA | B77: ATACO | C77: 73067 | D77: FALSE
A78: ATLANTICO | B78: ATLANTICO | C78: 8999 | D78: FALSE
A79: CHOCO | B79: ATRATO | C79: 27050 | D79: FALSE
A80: CORDOBA | B80: AYAPEL | C80: 23068 | D80: FALSE
A81: CHOCO | B81: BAGADO | C81: 27073 | D81: FALSE
A82: CHOCO | B82: BAHIA SOLANO | C82: 27075 | D82: FALSE
A83: CHOCO | B83: BAJO BAUDO | C83: 27077 | D83: FALSE
A84: CAUCA | B84: BALBOA - CAUCA | C84: 19075 | D84: FALSE
A85: RISARALDA | B85: BALBOA - RISARALDA | C85: 66075 | D85: FALSE
A86: ATLANTICO | B86: BARANOA | C86: 8078 | D86: FALSE
A87: HUILA | B87: BARAYA | C87: 41078 | D87: FALSE
A88: NARIÑO | B88: BARBACOAS | C88: 52079 | D88: FALSE
A89: ANTIOQUIA | B89: BARBOSA - ANTIOQUIA | C89: 5079 | D89: FALSE
A90: SANTANDER | B90: BARBOSA - SANTANDER | C90: 68077 | D90: FALSE
A91: SANTANDER | B91: BARICHARA | C91: 68079 | D91: FALSE
A92: META | B92: BARRANCA DE UPIA | C92: 50110 | D92: FALSE
A93: SANTANDER | B93: BARRANCABERMEJA | C93: 68081 | D93: FALSE
A94: LA GUAJIRA | B94: BARRANCAS | C94: 44078 | D94: FALSE
A95: BOLIVAR | B95: BARRANCO DE LOBA | C95: 13074 | D95: FALSE
A96: GUAINIA | B96: BARRANCO MINAS | C96: 94343 | D96: FALSE
A97: ATLANTICO | B97: BARRANQUILLA | C97: 8001 | D97: FALSE
A98: CESAR | B98: BECERRIL | C98: 20045 | D98: FALSE
A99: CALDAS | B99: BELALCAZAR | C99: 17088 | D99: FALSE
A100: BOYACA | B100: BELEN - BOYACA | C100: 15087 | D100: FALSE
A101: NARIÑO | B101: BELEN - NARIÑO | C101: 52083 | D101: FALSE
A102: CAQUETA | B102: BELEN DE LOS ANDAQUIES | C102: 18094 | D102: FALSE
A103: RISARALDA | B103: BELEN DE UMBRIA | C103: 66088 | D103: FALSE
A104: ANTIOQUIA | B104: BELLO | C104: 5088 | D104: FALSE
A105: ANTIOQUIA | B105: BELMIRA | C105: 5086 | D105: FALSE
A106: CUNDINAMARCA | B106: BELTRAN | C106: 25086 | D106: FALSE
A107: BOYACA | B107: BERBEO | C107: 15090 | D107: FALSE
A108: ANTIOQUIA | B108: BETANIA | C108: 5091 | D108: FALSE
A109: BOYACA | B109: BETEITIVA | C109: 15092 | D109: FALSE
A110: ANTIOQUIA | B110: BETULIA - ANTIOQUIA | C110: 5093 | D110: FALSE
A111: SANTANDER | B111: BETULIA - SANTANDER | C111: 68092 | D111: FALSE
A112: CUNDINAMARCA | B112: BITUIMA | C112: 25095 | D112: FALSE
A113: BOYACA | B113: BOAVITA | C113: 15097 | D113: FALSE
A114: N. DE SANTANDER | B114: BOCHALEMA | C114: 54099 | D114: FALSE
A115: BOGOTA | B115: BOGOTA | C115: 11999 | D115: FALSE
A116: BOGOTA | B116: BOGOTA, D.C. | C116: 11001 | D116: FALSE
A117: CUNDINAMARCA | B117: BOJACA | C117: 25099 | D117: FALSE
A118: CHOCO | B118: BOJAYA | C118: 27099 | D118: FALSE
A119: CAUCA | B119: BOLIVAR - CAUCA | C119: 19100 | D119: FALSE
A120: SANTANDER | B120: BOLIVAR - SANTANDER | C120: 68101 | D120: FALSE
A121: VALLE DEL CAUCA | B121: BOLIVAR - VALLE DEL CAUCA | C121: 76100 | D121: FALSE
A122: BOLIVAR | B122: BOLIVAR | C122: 13999 | D122: FALSE
A123: CESAR | B123: BOSCONIA | C123: 20060 | D123: FALSE
A124: BOYACA | B124: BOYACA - MUNICIPIO | C124: 15104 | D124: FALSE
A125: BOYACA | B125: BOYACA- DEPARTAMENTO | C125: 15999 | D125: FALSE
A126: ANTIOQUIA | B126: BRICEÑO - ANTIOQUIA | C126: 5107 | D126: FALSE
A127: BOYACA | B127: BRICEÑO - BOYACA | C127: 15106 | D127: FALSE
A128: SANTANDER | B128: BUCARAMANGA | C128: 68001 | D128: FALSE
A129: N. DE SANTANDER | B129: BUCARASICA | C129: 54109 | D129: FALSE
A130: VALLE DEL CAUCA | B130: BUENAVENTURA | C130: 76109 | D130: FALSE
A131: BOYACA | B131: BUENAVISTA - BOYACA | C131: 15109 | D131: FALSE
A132: CORDOBA | B132: BUENAVISTA - CORDOBA | C132: 23079 | D132: FALSE
A133: QUINDIO | B133: BUENAVISTA - QUINDIO | C133: 63111 | D133: FALSE
A134: SUCRE | B134: BUENAVISTA | C134: 70110 | D134: FALSE
A135: CAUCA | B135: BUENOS AIRES | C135: 19110 | D135: FALSE
A136: NARIÑO | B136: BUESACO | C136: 52110 | D136: FALSE
A137: VALLE DEL CAUCA | B137: BUGALAGRANDE | C137: 76113 | D137: FALSE
A138: ANTIOQUIA | B138: BURITICA | C138: 5113 | D138: FALSE
A139: BOYACA | B139: BUSBANZA | C139: 15114 | D139: FALSE
A140: CUNDINAMARCA | B140: CABRERA - CUNDINAMARCA | C140: 25120 | D140: FALSE
A141: SANTANDER | B141: CABRERA - SANTANDER | C141: 68121 | D141: FALSE
A142: META | B142: CABUYARO | C142: 50124 | D142: FALSE
A143: GUAINIA | B143: CACAHUAL | C143: 94886 | D143: FALSE
A144: ANTIOQUIA | B144: CACERES | C144: 5120 | D144: FALSE
A145: CUNDINAMARCA | B145: CACHIPAY | C145: 25123 | D145: FALSE
A146: N. DE SANTANDER | B146: CACHIRA | C146: 54128 | D146: FALSE
A147: N. DE SANTANDER | B147: CACOTA | C147: 54125 | D147: FALSE
A148: ANTIOQUIA | B148: CAICEDO | C148: 5125 | D148: FALSE
A149: VALLE DEL CAUCA | B149: CAICEDONIA | C149: 76122 | D149: FALSE
A150: SUCRE | B150: CAIMITO | C150: 70124 | D150: FALSE
A151: TOLIMA | B151: CAJAMARCA | C151: 73124 | D151: FALSE
A152: CAUCA | B152: CAJIBIO | C152: 19130 | D152: FALSE
A153: CUNDINAMARCA | B153: CAJICA | C153: 25126 | D153: FALSE
A154: BOLIVAR | B154: CALAMAR - BOLIVAR | C154: 13140 | D154: FALSE
A155: GUAVIARE | B155: CALAMAR - GUAVIARE | C155: 95015 | D155: FALSE
A156: QUINDIO | B156: CALARCA | C156: 63130 | D156: FALSE
A157: ANTIOQUIA | B157: CALDAS - ANTIOQUIA | C157: 5129 | D157: FALSE
A158: BOYACA | B158: CALDAS - BOYACA | C158: 15131 | D158: FALSE
A159: CALDAS | B159: CALDAS -DPTO. | C159: 17999 | D159: FALSE
A160: CAUCA | B160: CALDONO | C160: 19137 | D160: FALSE
A161: VALLE DEL CAUCA | B161: CALI | C161: 76001 | D161: FALSE
A162: SANTANDER | B162: CALIFORNIA | C162: 68132 | D162: FALSE
A163: VALLE DEL CAUCA | B163: CALIMA | C163: 76126 | D163: FALSE
A164: CAUCA | B164: CALOTO | C164: 19142 | D164: FALSE
A165: ANTIOQUIA | B165: CAMPAMENTO | C165: 5134 | D165: FALSE
A166: ATLANTICO | B166: CAMPO DE LA CRUZ | C166: 8137 | D166: FALSE
A167: HUILA | B167: CAMPOALEGRE | C167: 41132 | D167: FALSE
A168: BOYACA | B168: CAMPOHERMOSO | C168: 15135 | D168: FALSE
A169: CORDOBA | B169: CANALETE | C169: 23090 | D169: FALSE
A170: ATLANTICO | B170: CANDELARIA - ATLANTICO | C170: 8141 | D170: FALSE
A171: VALLE DEL CAUCA | B171: CANDELARIA | C171: 76130 | D171: FALSE
A172: BOLIVAR | B172: CANTAGALLO | C172: 13160 | D172: FALSE
A173: ANTIOQUIA | B173: CAÑASGORDAS | C173: 5138 | D173: FALSE
A174: CUNDINAMARCA | B174: CAPARRAPI | C174: 25148 | D174: FALSE
A175: SANTANDER | B175: CAPITANEJO | C175: 68147 | D175: FALSE
A176: CAQUETA | B176: CAQUETA | C176: 18999 | D176: FALSE
A177: CUNDINAMARCA | B177: CAQUEZA | C177: 25151 | D177: FALSE
A178: ANTIOQUIA | B178: CARACOLI | C178: 5142 | D178: FALSE
A179: ANTIOQUIA | B179: CARAMANTA | C179: 5145 | D179: FALSE
A180: SANTANDER | B180: CARCASI | C180: 68152 | D180: FALSE
A181: ANTIOQUIA | B181: CAREPA | C181: 5147 | D181: FALSE
A182: TOLIMA | B182: CARMEN DE APICALA | C182: 73148 | D182: FALSE
A183: CUNDINAMARCA | B183: CARMEN DE CARUPA | C183: 25154 | D183: FALSE
A184: CHOCO | B184: CARMEN DEL DARIEN | C184: 27150 | D184: FALSE
A185: ANTIOQUIA | B185: CAROLINA | C185: 5150 | D185: FALSE
A186: BOLIVAR | B186: CARTAGENA | C186: 13001 | D186: FALSE
A187: CAQUETA | B187: CARTAGENA DEL CHAIRA | C187: 18150 | D187: FALSE
A188: VALLE DEL CAUCA | B188: CARTAGO | C188: 76147 | D188: FALSE
A189: VAUPES | B189: CARURU | C189: 97161 | D189: FALSE
A190: TOLIMA | B190: CASABIANCA | C190: 73152 | D190: FALSE
A191: CASANARE | B191: CASANARE | C191: 85999 | D191: FALSE
A192: META | B192: CASTILLA LA NUEVA | C192: 50150 | D192: FALSE
A193: CAUCA | B193: CAUCA | C193: 19999 | D193: FALSE
A194: ANTIOQUIA | B194: CAUCASIA | C194: 5154 | D194: FALSE
A195: SANTANDER | B195: CEPITA | C195: 68160 | D195: FALSE
A196: CORDOBA | B196: CERETE | C196: 23162 | D196: FALSE
A197: BOYACA | B197: CERINZA | C197: 15162 | D197: FALSE
A198: SANTANDER | B198: CERRITO | C198: 68162 | D198: FALSE
A199: MAGDALENA | B199: CERRO SAN ANTONIO | C199: 47161 | D199: FALSE
A200: CHOCO | B200: CERTEGUI | C200: 27160 | D200: FALSE
... 967 more rows
